bitfinex/quotes_BTCUSD_20241004
["timestamp","ask_amount","ask_price","bid_price","bid_amount"]
[1728040668808,0.001636,61556.0,61555.0,0.46778149]
[1728040669482,0.02710344,61556.0,61555.0,0.46778149]
[1728040669746,0.02710344,61556.0,61555.0,0.47580485]
[1728040670363,0.02710344,61556.0,61555.0,0.56830485]
[1728040670535,0.02710344,61556.0,61555.0,0.66830485]
[1728040671159,0.02710344,61556.0,61555.0,0.66030485]
[1728040671373,0.02710344,61556.0,61555.0,0.65030485]
[1728040671575,0.02710344,61556.0,61555.0,0.66130485]
[1728040671829,0.02710344,61556.0,61555.0,0.67430485]
[1728040672628,0.02710344,61556.0,61555.0,0.66330485]
[1728040673093,0.02710344,61556.0,61555.0,0.65030485]
[1728040673316,0.02710344,61556.0,61555.0,0.66430485]
[1728040673843,0.001636,61556.0,61555.0,0.72895785]
[1728040674297,0.001636,61556.0,61555.0,0.74295785]
[1728040676524,0.001636,61556.0,61555.0,0.72895785]
[1728040676721,0.001636,61556.0,61555.0,0.74295785]
[1728040677031,0.001636,61556.0,61555.0,0.65045785]
[1728040677235,0.001636,61556.0,61555.0,0.65154278]
[1728040677443,0.001636,61556.0,61555.0,0.66554278]
[1728040677859,0.001636,61556.0,61555.0,0.65154278]
[1728040678066,0.001636,61556.0,61555.0,0.63754278]
[1728040678282,0.001636,61556.0,61555.0,0.65154278]
[1728040678504,0.001636,61556.0,61555.0,0.74764278]
[1728040678726,0.001636,61556.0,61555.0,0.85244278]
[1728040679801,0.001636,61556.0,61555.0,0.83844278]
[1728040679993,0.001636,61556.0,61555.0,0.85244278]
[1728040680207,0.001636,61556.0,61555.0,0.83844278]
[1728040680427,0.001636,61556.0,61555.0,0.85244278]
[1728040680877,0.001636,61556.0,61555.0,0.83844278]
[1728040681398,0.001636,61556.0,61555.0,0.85244278]
[1728040681834,0.001636,61556.0,61555.0,0.83844278]
[1728040682069,0.001636,61556.0,61555.0,0.85244278]
[1728040682793,0.001636,61556.0,61555.0,0.83844278]
[1728040683012,0.001636,61556.0,61555.0,0.85244278]
[1728040688149,0.001636,61556.0,61555.0,0.663651]
[1728040688388,0.001636,61556.0,61555.0,0.37297163]
[1728040688638,0.01709649,61556.0,61555.0,0.37297163]
[1728040689123,0.001636,61556.0,61555.0,0.46967163]
[1728040689347,0.001636,61556.0,61555.0,0.45567163]
[1728040689583,0.001638,61564.0,61555.0,0.45567163]
[1728040689584,0.001638,61564.0,61559.0,0.1739]
[1728040689803,0.001638,61564.0,61555.0,0.20125319]
[1728040689804,0.24343338,61580.0,61578.0,0.162395]
[1728040690031,0.016502,61579.0,61578.0,0.162395]
[1728040690754,0.04127253,61579.0,61578.0,0.162395]
[1728040691196,0.04127253,61579.0,61578.0,0.32558171]
[1728040691632,0.04127253,61579.0,61578.0,0.33358171]
[1728040692347,0.04127253,61579.0,61578.0,0.34481401]
[1728040692608,0.04127253,61579.0,61578.0,0.35581401]
[1728040692854,0.04127253,61579.0,61578.0,0.33681401]
[1728040693103,0.04127253,61579.0,61578.0,0.35081401]
[1728040693587,0.04127253,61579.0,61578.0,0.35471601]
[1728040693845,0.11937253,61579.0,61578.0,0.35471601]
[1728040694058,0.11937253,61579.0,61578.0,0.36271601]
[1728040695446,0.10388953,61579.0,61578.0,0.36271601]
[1728040695667,0.11925471,61579.0,61578.0,0.36271601]
[1728040697827,0.11925471,61579.0,61578.0,0.60614939]
[1728040698050,0.04115471,61579.0,61578.0,0.36271601]
[1728040698240,0.001019,61579.0,61578.0,0.36271601]
[1728040698494,0.01646082,61579.0,61578.0,0.36271601]
[1728040701747,0.01645617,61579.0,61578.0,0.36271601]
[1728040703128,0.001019,61579.0,61578.0,0.36271601]
[1728040703363,0.07086789,61588.0,61587.0,0.162371]
[1728040703809,0.07086789,61588.0,61587.0,0.17022554]
[1728040704031,0.21401039,61588.0,61587.0,0.162371]
[1728040704331,0.21401039,61588.0,61587.0,0.17354403]
[1728040704584,0.21401039,61588.0,61587.0,0.01117303]
[1728040704815,0.21401039,61588.0,61587.0,0.17354403]
[1728040705267,0.16576789,61588.0,61587.0,0.17354403]
[1728040705492,0.21502289,61588.0,61587.0,0.17354403]
[1728040706592,0.24048135,61588.0,61587.0,0.01117303]
[1728040706828,0.24048135,61588.0,61587.0,0.17354403]
[1728040707276,0.59164213,61588.0,61587.0,0.01117303]
[1728040707501,0.59164213,61588.0,61587.0,0.01902757]
[1728040707717,0.59164213,61588.0,61587.0,0.00785454]
[1728040707939,0.59164213,61588.0,61587.0,0.01117303]
[1728040708219,0.59164213,61588.0,61582.0,0.0008432]
[1728040708220,0.162382,61583.0,61582.0,0.0008432]
[1728040708474,0.57483998,61583.0,61582.0,0.0008432]
[1728040710070,0.57583998,61583.0,61582.0,0.0018432]
[1728040710506,0.57883998,61583.0,61582.0,0.0028432]
[1728040711443,0.55593781,61583.0,61582.0,0.0028432]
[1728040711663,0.60428106,61583.0,61582.0,0.0028432]
[1728040713550,0.60228106,61583.0,61582.0,0.0028432]
[1728040714703,0.55393781,61583.0,61582.0,0.0028432]
[1728040714936,0.58577003,61583.0,61582.0,0.0018432]
[1728040715163,0.601203,61583.0,61582.0,0.0018432]
[1728040715378,0.600203,61583.0,61582.0,0.0008432]
[1728040715593,0.64846823,61583.0,61582.0,0.0008432]
[1728040715810,0.65046823,61583.0,61582.0,0.0018432]
[1728040715958,0.65146823,61583.0,61582.0,0.0028432]
[1728040716177,0.65346823,61583.0,61582.0,0.0028432]
[1728040716578,0.65146823,61583.0,61582.0,0.0028432]
[1728040717162,0.65228623,61583.0,61582.0,0.0028432]
[1728040717624,0.604021,61583.0,61582.0,0.0028432]
[1728040718080,0.65231224,61583.0,61582.0,0.0028432]
[1728040719802,0.78269406,61583.0,61582.0,0.0028432]
[1728040720032,0.78469406,61583.0,61582.0,0.0028432]
[1728040720465,0.62884821,61583.0,61582.0,0.0028432]
[1728040721137,0.62886181,61583.0,61582.0,0.0028432]
[1728040721358,0.62886181,61583.0,61582.0,0.00284319]
[1728040722878,0.89836181,61583.0,61582.0,0.00184319]
[1728040723357,0.87366906,61583.0,61582.0,0.00184319]
[1728040723575,0.85009662,61583.0,61582.0,0.00184319]
[1728040723797,0.87556194,61583.0,61582.0,0.00184319]
[1728040724253,0.88756194,61583.0,61582.0,0.00284319]
[1728040724745,0.87556194,61583.0,61582.0,0.00184319]
[1728040724962,0.86104285,61583.0,61582.0,0.00184319]
[1728040725171,1.03422956,61583.0,61582.0,0.00284319]
[1728040727156,1.13155307,61583.0,61582.0,0.00284319]
[1728040727551,1.13152676,61583.0,61582.0,0.00284319]
[1728040729405,1.03422956,61583.0,61582.0,0.00284319]
[1728040729627,1.059696,61583.0,61582.0,0.00284319]
[1728040729849,1.13152676,61583.0,61582.0,0.00284319]
[1728040730528,1.03422956,61583.0,61582.0,0.00284319]
[1728040730747,0.98597849,61583.0,61582.0,0.00284319]
[1728040731458,1.03425604,61583.0,61582.0,0.00284319]
[1728040732650,1.05972281,61583.0,61582.0,0.00284319]
[1728040736773,1.03425604,61583.0,61582.0,0.00284319]
[1728040737685,0.98597849,61583.0,61582.0,0.00284319]
[1728040737911,1.03433284,61583.0,61582.0,0.00284319]
[1728040739726,1.05979941,61583.0,61582.0,0.00284319]
[1728040740443,0.8966127,61583.0,61582.0,0.00284319]
[1728040742024,0.7251127,61583.0,61582.0,0.00284319]
[1728040743026,0.72511048,61583.0,61582.0,0.00284319]
[1728040746232,0.67675835,61583.0,61582.0,0.00284319]
[1728040746476,0.72506836,61583.0,61582.0,0.00284319]
[1728040746725,0.88825507,61583.0,61582.0,0.00284319]
[1728040747413,0.98545681,61583.0,61582.0,0.00284319]
[1728040748090,1.15695681,61583.0,61582.0,0.00284319]
[1728040748322,0.435885,61582.0,61581.0,0.001636]
[1728040748552,0.35120278,61572.0,61571.0,0.24343338]
[1728040748769,0.39951279,61572.0,61571.0,0.24343338]
[1728040748987,0.40151279,61572.0,61571.0,0.24343338]
[1728040749235,0.162429,61565.0,61563.0,0.0906]
[1728040749491,0.35122078,61565.0,61563.0,0.0906]
[1728040749730,0.35122078,61565.0,61564.0,0.25064969]
[1728040749913,0.35122078,61565.0,61564.0,0.001636]
[1728040750140,0.39959539,61565.0,61564.0,0.00721631]
[1728040750409,0.39959539,61565.0,61564.0,0.001636]
[1728040750643,0.42506423,61565.0,61564.0,0.001636]
[1728040750862,0.42506423,61565.0,61564.0,0.004636]
[1728040751332,0.42506423,61565.0,61564.0,0.0082176]
[1728040751569,0.42606423,61565.0,61564.0,0.0082176]
[1728040752057,0.42606423,61565.0,61564.0,0.0072176]
[1728040752530,0.42706423,61565.0,61564.0,0.0072176]
[1728040753023,0.37868962,61565.0,61564.0,0.0072176]
[1728040753471,0.42708415,61565.0,61564.0,0.0072176]
[1728040755328,0.42708415,61565.0,61564.0,0.001636]
[1728040755567,0.42708415,61565.0,61564.0,0.0072176]
[1728040755811,0.42708415,61565.0,61564.0,0.01519346]
[1728040756274,0.42709681,61565.0,61564.0,0.01519346]
[1728040759430,0.37868962,61565.0,61564.0,0.01519346]
[1728040759662,0.4271037,61565.0,61564.0,0.01519346]
[1728040761800,0.36228817,61565.0,61564.0,0.01519346]
[1728040762787,0.31387409,61565.0,61564.0,0.01519346]
[1728040763325,0.36228528,61565.0,61564.0,0.01519346]
[1728040763547,0.41069647,61565.0,61564.0,0.01519346]
[1728040763983,0.38591468,61565.0,61564.0,0.01519346]
[1728040764227,0.36228528,61565.0,61564.0,0.01519346]
[1728040764908,0.23830903,61565.0,61564.0,0.01519346]
[1728040765864,0.18989784,61565.0,61564.0,0.01519346]
[1728040766319,0.23824827,61565.0,61564.0,0.01519346]
[1728040772194,0.18989784,61565.0,61564.0,0.01519346]
[1728040772407,0.23824905,61565.0,61564.0,0.01519346]
[1728040772841,0.2463898,61565.0,61564.0,0.01519346]
[1728040773248,0.28660151,61565.0,61564.0,0.01519346]
[1728040773892,0.2382503,61565.0,61564.0,0.01519346]
[1728040775265,0.0758213,61565.0,61564.0,0.01519346]
[1728040775456,0.07582455,61565.0,61564.0,0.01519346]
[1728040775672,0.23825355,61565.0,61564.0,0.01519346]
[1728040776123,0.23725355,61565.0,61564.0,0.01519346]
[1728040776351,0.23625355,61565.0,61564.0,0.01519346]
[1728040776811,0.07382455,61565.0,61564.0,0.25952546]
[1728040777043,0.07382455,61565.0,61564.0,0.35722546]
[1728040778517,0.04835571,61565.0,61564.0,0.35522546]
[1728040778713,0.04835571,61565.0,61564.0,0.36022546]
[1728040779927,0.04935571,61565.0,61564.0,0.36022546]
[1728040781724,0.07482324,61565.0,61564.0,0.36022546]
[1728040781935,0.07482385,61565.0,61564.0,0.36022546]
[1728040782785,0.04935632,61565.0,61564.0,0.36022546]
[1728040783864,0.04935632,61565.0,61564.0,0.11589346]
[1728040784084,0.04935632,61565.0,61564.0,0.02019346]
[1728040784085,0.28039247,61565.0,61564.0,0.02019346]
[1728040784540,0.28039247,61565.0,61564.0,0.006636]
[1728040785016,0.28039247,61565.0,61564.0,0.001636]
[1728040785229,0.28139247,61565.0,61564.0,0.001636]
[1728040785866,0.23725483,61565.0,61564.0,0.001636]
[1728040786079,0.23625483,61565.0,61564.0,0.001636]
[1728040786516,0.36223108,61565.0,61564.0,0.001636]
[1728040786947,0.36323108,61565.0,61564.0,0.001636]
[1728040788095,0.31487476,61565.0,61564.0,0.001636]
[1728040791652,0.31487476,61565.0,61564.0,0.00773936]
[1728040791890,0.31487476,61565.0,61564.0,0.01571522]
[1728040792131,0.31487476,61565.0,61564.0,0.00773936]
[1728040796663,0.31487476,61565.0,61564.0,0.001636]
[1728040796846,0.31487476,61565.0,61564.0,0.00774189]
[1728040797064,0.31487476,61565.0,61564.0,0.001636]
[1728040797267,0.31487476,61565.0,61564.0,0.01571779]
[1728040797485,0.31487476,61565.0,61564.0,0.001636]
[1728040797702,0.31487476,61565.0,61564.0,0.00774193]
[1728040797958,0.31487476,61565.0,61564.0,0.001636]
[1728040798165,0.31487476,61565.0,61564.0,0.00774193]
[1728040798381,0.31487476,61565.0,61564.0,0.00222987]
[1728040798625,0.31487476,61565.0,61564.0,0.0083359]
[1728040798809,0.31487476,61565.0,61564.0,0.00222987]
[1728040799049,0.31487476,61565.0,61564.0,0.0083359]
[1728040804703,0.42384503,61565.0,61564.0,0.0083359]
[1728040804904,0.42384503,61565.0,61564.0,0.00222987]
[1728040805120,0.42384503,61565.0,61564.0,0.00833665]
[1728040805340,0.42384503,61565.0,61564.0,0.00222987]
[1728040805542,0.42384503,61565.0,61564.0,0.00833665]
[1728040805763,0.31487476,61565.0,61564.0,0.00222987]
[1728040805990,0.19089851,61565.0,61564.0,0.00833656]
[1728040806198,0.19089851,61565.0,61564.0,0.00222987]
[1728040806406,0.19089851,61565.0,61564.0,0.00833656]
[1728040806615,0.19089851,61565.0,61564.0,0.00222987]
[1728040806839,0.19089851,61565.0,61564.0,0.00833656]
[1728040807045,0.19089851,61565.0,61564.0,0.00222987]
[1728040807498,0.02846951,61565.0,61564.0,0.00833656]
[1728040807737,0.19089851,61565.0,61564.0,0.00833656]
[1728040807971,0.02846951,61565.0,61564.0,0.26586856]
[1728040809117,0.02746951,61565.0,61564.0,0.26586856]
[1728040809351,0.02746951,61565.0,61564.0,0.27384442]
[1728040809585,0.002,61565.0,61564.0,0.27384442]
[1728040809822,0.162418,61570.0,61566.0,0.162425]
[1728040810262,0.54645565,61572.0,61567.0,0.00796003]
[1728040810563,0.54645565,61572.0,61564.0,0.10343656]
[1728040810564,0.16242,61569.0,61564.0,0.10343656]
[1728040810774,0.162418,61570.0,61568.0,0.0140487]
[1728040810995,0.162418,61570.0,61566.0,0.162426]
[1728040811218,0.162418,61570.0,61569.0,0.00609076]
[1728040811437,0.162418,61570.0,61567.0,0.162423]
[1728040811661,0.162418,61570.0,61569.0,0.00609076]
[1728040811905,0.162417,61570.0,61567.0,0.162423]
[1728040812129,0.163417,61570.0,61569.0,0.00609076]
[1728040812318,0.163417,61570.0,61568.0,0.00609394]
[1728040812566,0.164417,61570.0,61569.0,0.00609076]
[1728040812812,0.002,61570.0,61569.0,0.26790976]
[1728040813054,0.003,61570.0,61569.0,0.338919]
[1728040813300,0.003,61570.0,61569.0,0.34635424]
[1728040813538,0.002,61570.0,61569.0,0.34635424]
[1728040814007,0.003,61570.0,61569.0,0.34635424]
[1728040814259,0.001,61570.0,61569.0,0.34635423]
[1728040814479,0.02846538,61570.0,61569.0,0.34635423]
[1728040815167,0.02746538,61570.0,61569.0,0.35135423]
[1728040815652,0.02846538,61570.0,61569.0,0.35135422]
[1728040816360,0.31485763,61570.0,61569.0,0.01243522]
[1728040816623,0.39873408,61570.0,61569.0,0.01243522]
[1728040816852,0.11434183,61570.0,61569.0,0.00559382]
[1728040817123,0.31485763,61570.0,61569.0,0.00559382]
[1728040817334,0.31285763,61570.0,61569.0,0.00059382]
[1728040817550,0.31285763,61570.0,61569.0,0.00159382]
[1728040817991,0.31285763,61570.0,61569.0,0.00059382]
[1728040817992,0.28739225,61570.0,61569.0,0.00059382]
[1728040818279,0.28639225,61570.0,61569.0,0.00059382]
[1728040820137,0.28639225,61570.0,61569.0,0.00742512]
[1728040820371,0.28639225,61570.0,61569.0,0.00059382]
[1728040820607,0.28639225,61570.0,61569.0,0.00742512]
[1728040820867,0.28639225,61570.0,61569.0,0.00059382]
[1728040821067,0.31185961,61570.0,61569.0,0.00742512]
[1728040821497,0.28639225,61570.0,61569.0,0.00742512]
[1728040822405,0.28639225,61570.0,61569.0,0.00059382]
[1728040822635,0.28639225,61570.0,61569.0,0.00223182]
[1728040824896,0.3118599,61570.0,61569.0,0.00223182]
[1728040829059,0.18788365,61570.0,61569.0,0.00223182]
[1728040829684,0.02546765,61570.0,61569.0,0.00223182]
[1728040829919,0.18788365,61570.0,61569.0,0.09433182]
[1728040830121,0.18788365,61570.0,61569.0,0.10116823]
[1728040830983,0.23614365,61570.0,61569.0,0.10116823]
[1728040833132,0.07372765,61570.0,61569.0,0.10116823]
[1728040833605,0.23614365,61570.0,61569.0,0.10116823]
[1728040833812,0.23614365,61570.0,61569.0,0.09433181]
[1728040834035,0.23614365,61570.0,61569.0,0.10137726]
[1728040834955,0.07372765,61570.0,61569.0,0.10137726]
[1728040835180,0.23614365,61570.0,61569.0,0.10137726]
[1728040836083,0.23613021,61570.0,61569.0,0.10137726]
[1728040836768,0.07371421,61570.0,61569.0,0.17947726]
[1728040837001,0.07371421,61570.0,61569.0,0.18711468]
[1728040837241,0.04824656,61570.0,61569.0,0.34953368]
[1728040838193,0.04824656,61570.0,61569.0,0.18711468]
[1728040838724,0.21066256,61570.0,61569.0,0.18711468]
[1728040838928,0.04824656,61570.0,61569.0,0.18711467]
[1728040839606,0.04824656,61570.0,61569.0,0.34953367]
[1728040839832,0.03084747,61570.0,61569.0,0.34953367]
[1728040840167,0.04823654,61570.0,61569.0,0.34953367]
[1728040840349,0.04823654,61570.0,61569.0,0.34953366]
[1728040840602,0.05635192,61570.0,61569.0,0.34953366]
[1728040840842,0.05635192,61570.0,61569.0,0.51272037]
[1728040841063,0.04009673,61570.0,61569.0,0.51272037]
[1728040841296,0.04009673,61570.0,61569.0,0.61272036]
[1728040841764,0.04009673,61570.0,61569.0,0.66132293]
[1728040841970,0.04009673,61570.0,61569.0,0.65279239]
[1728040842198,0.04109673,61570.0,61569.0,0.66579238]
[1728040842431,0.04109673,61570.0,61569.0,0.60418981]
[1728040842725,0.04009673,61570.0,61569.0,0.60418777]
[1728040842966,0.04104101,61570.0,61569.0,0.61818777]
[1728040843878,0.04204101,61570.0,61569.0,0.61918777]
[1728040844967,0.04286001,61570.0,61569.0,0.61918777]
[1728040845263,0.01821939,61570.0,61569.0,0.61918777]
[1728040845768,0.01821939,61570.0,61569.0,0.61918776]
[1728040847093,0.04283476,61570.0,61569.0,0.61918776]
[1728040847309,0.04283476,61570.0,61569.0,0.61918321]
[1728040849114,0.04255454,61570.0,61569.0,0.61918321]
[1728040849580,0.00253878,61570.0,61569.0,0.61918321]
[1728040850009,0.04253565,61570.0,61569.0,0.61918321]
[1728040850233,0.08253399,61570.0,61569.0,0.61918321]
[1728040852685,0.08253399,61570.0,61569.0,0.6191832]
[1728040854016,0.04253712,61570.0,61569.0,0.6191832]
[1728040857370,0.05067605,61570.0,61569.0,0.6191832]
[1728040861039,0.05067605,61570.0,61569.0,0.5410832]
[1728040861512,0.05067605,61570.0,61569.0,0.38141761]
[1728040861732,0.05067605,61570.0,61569.0,0.02337497]
[1728040861990,0.00253878,61570.0,61569.0,0.02337497]
[1728040862212,0.05072678,61570.0,61569.0,0.02337497]
[1728040862892,0.04972678,61570.0,61569.0,0.02237497]
[1728040863374,0.050007,61570.0,61569.0,0.00937497]
[1728040863602,0.049007,61570.0,61569.0,0.00837497]
[1728040864040,0.212423,61570.0,61569.0,0.00937497]
[1728040864264,0.050007,61570.0,61569.0,0.00937497]
[1728040864699,0.050007,61570.0,61569.0,0.01337497]
[1728040864700,0.212423,61570.0,61569.0,0.01337497]
[1728040864921,0.384323,61570.0,61569.0,0.01337497]
[1728040865136,0.336135,61570.0,61569.0,0.00723175]
[1728040865356,0.38436528,61570.0,61569.0,0.00323175]
[1728040865810,0.38336528,61570.0,61569.0,0.00423175]
[1728040866081,0.38336528,61570.0,61569.0,0.00323175]
[1728040866310,0.52472909,61570.0,61569.0,0.00323175]
[1728040866527,0.40883084,61570.0,61569.0,0.00423175]
[1728040866967,0.40983084,61570.0,61569.0,0.00423175]
[1728040867403,0.38336528,61570.0,61569.0,0.00423175]
[1728040867619,0.39036528,61570.0,61569.0,0.00423175]
[1728040867837,0.51434153,61570.0,61569.0,0.00423175]
[1728040868055,0.51434153,61570.0,61569.0,0.00223175]
[1728040868485,0.51534153,61570.0,61569.0,0.00223175]
[1728040868896,0.51434153,61570.0,61569.0,0.00223175]
[1728040869154,0.52106131,61570.0,61569.0,0.00323175]
[1728040870258,0.54652879,61570.0,61569.0,0.00323175]
[1728040870653,0.52106131,61570.0,61569.0,0.00323175]
[1728040871642,0.47283103,61570.0,61569.0,0.00323175]
[1728040871887,0.52104129,61570.0,61569.0,0.00323175]
[1728040873537,0.54650865,61570.0,61569.0,0.00323175]
[1728040877904,0.52104129,61570.0,61569.0,0.00323175]
[1728040878369,0.5210603,61570.0,61569.0,0.00323175]
[1728040881078,0.54652764,61570.0,61569.0,0.00323175]
[1728040881778,0.54651636,61570.0,61569.0,0.00323175]
[1728040883921,0.54652132,61570.0,61569.0,0.00323175]
[1728040885633,0.45542132,61570.0,61569.0,0.00323175]
[1728040889002,0.4551411,61570.0,61569.0,0.00323175]
[1728040889235,0.33116485,61570.0,61569.0,0.00323175]
[1728040889435,0.4551411,61570.0,61569.0,0.00323175]
[1728040890298,0.5525411,61570.0,61569.0,0.00323175]
[1728040890741,0.5545411,61570.0,61569.0,0.00323175]
[1728040891595,0.5525411,61570.0,61569.0,0.00323175]
[1728040892244,0.50631815,61570.0,61569.0,0.00323175]
[1728040892475,0.55457284,61570.0,61569.0,0.00323175]
[1728040893132,0.64426284,61570.0,61569.0,0.00323175]
[1728040893847,0.6187955,61570.0,61569.0,0.00323175]
[1728040895155,0.57054081,61570.0,61569.0,0.00323175]
[1728040895591,0.71881106,61570.0,61569.0,0.00323175]
[1728040895797,0.84050392,61570.0,61569.0,0.00323175]
[1728040896009,0.71881106,61570.0,61569.0,0.00323175]
[1728040896429,0.84053079,61570.0,61569.0,0.00323175]
[1728040896768,0.71881106,61570.0,61569.0,0.00323175]
[1728040896997,0.84166125,61570.0,61569.0,0.00323175]
[1728040897216,0.85900779,61570.0,61569.0,0.00323175]
[1728040897426,0.84066193,61570.0,61569.0,0.00223175]
[1728040897642,0.85466193,61570.0,61569.0,0.00323175]
[1728040897880,0.84166193,61570.0,61569.0,0.00323175]
[1728040898148,0.81619041,61570.0,61569.0,0.00323175]
[1728040898714,0.83019041,61570.0,61569.0,0.00323175]
[1728040899158,0.8147557,61570.0,61569.0,0.00323175]
[1728040899488,0.85451417,61570.0,61569.0,0.00323175]
[1728040899699,0.73278896,61570.0,61569.0,0.00323175]
[1728040901455,0.75826081,61570.0,61569.0,0.00323175]
[1728040901962,0.78373625,61570.0,61569.0,0.00323175]
[1728040902152,0.1781,61565.0,61564.0,0.001636]
[1728040902381,0.1781,61565.0,61551.0,0.24343338]
[1728040902382,0.002,61552.0,61551.0,0.24343338]
[1728040902617,0.16448,61546.0,61545.0,0.001638]
[1728040902854,0.28845625,61546.0,61545.0,0.001638]
[1728040903063,0.62412518,61546.0,61545.0,0.001638]
[1728040903292,0.162501,61538.0,61526.0,0.000819]
[1728040903506,0.162501,61538.0,61533.0,0.0009984]
[1728040903507,0.45677725,61538.0,61533.0,0.0009984]
[1728040903724,0.49892012,61538.0,61533.0,0.0009984]
[1728040903957,0.49892012,61538.0,61526.0,0.000819]
[1728040903958,0.162519,61531.0,61526.0,0.000819]
[1728040904168,0.28649525,61531.0,61526.0,0.000819]
[1728040904606,0.16253,61527.0,61526.0,0.000819]
[1728040904821,0.28650625,61527.0,61526.0,0.000819]
[1728040905031,0.16253,61528.0,61526.0,0.000819]
[1728040905239,0.16253,61527.0,61526.0,0.000819]
[1728040905448,0.325051,61529.0,61526.0,0.000819]
[1728040905449,0.162526,61529.0,61526.0,0.000819]
[1728040905883,0.44902525,61530.0,61526.0,0.000819]
[1728040905884,0.162528,61528.0,61526.0,0.000819]
[1728040906549,0.44902525,61530.0,61526.0,0.000819]
[1728040906749,0.162528,61528.0,61526.0,0.000819]
[1728040906953,0.487585,61528.0,61526.0,0.000819]
[1728040907165,0.16253,61527.0,61526.0,0.000819]
[1728040908931,0.28650625,61527.0,61526.0,0.000819]
[1728040909150,0.28622603,61527.0,61526.0,0.000819]
[1728040910628,0.16224978,61527.0,61526.0,0.091319]
[1728040910798,0.16224978,61527.0,61526.0,0.174019]
[1728040911210,0.28622603,61527.0,61526.0,0.174019]
[1728040911416,0.28622603,61527.0,61526.0,0.091319]
[1728040912612,0.35076611,61527.0,61526.0,0.091319]
[1728040913068,0.33453954,61527.0,61526.0,0.091319]
[1728040915686,0.32639406,61527.0,61526.0,0.091319]
[1728040915918,0.35160566,61527.0,61526.0,0.000819]
[1728040917177,0.35160566,61527.0,61526.0,0.01660842]
[1728040917951,0.32612218,61527.0,61526.0,0.01660842]
[1728040918182,0.32612218,61527.0,61526.0,0.000819]
[1728040918955,0.28622603,61527.0,61526.0,0.000819]
[1728040919196,0.30155701,61527.0,61526.0,0.000819]
[1728040919455,0.30155701,61527.0,61517.0,0.001636]
[1728040919456,0.1831,61526.0,61517.0,0.001636]
[1728040919695,0.337954,61518.0,61517.0,0.001636]
[1728040919943,0.337954,61518.0,61504.0,0.33893338]
[1728040919944,0.16258,61508.0,61504.0,0.24343338]
[1728040920299,0.16258,61508.0,61505.0,0.0009992]
[1728040920300,0.33456397,61508.0,61505.0,0.0009992]
[1728040920561,0.33456397,61508.0,61504.0,0.24343338]
[1728040920562,0.47195806,61508.0,61504.0,0.24343338]
[1728040920814,0.49945141,61508.0,61504.0,0.24343338]
[1728040921335,0.49945141,61508.0,61502.0,0.001638]
[1728040921598,0.34718107,61508.0,61502.0,0.001638]
[1728040921881,0.23608107,61508.0,61502.0,0.001638]
[1728040922360,0.20244055,61508.0,61502.0,0.001638]
[1728040922844,0.03986055,61508.0,61504.0,0.162589]
[1728040923082,0.03986055,61508.0,61502.0,0.001638]
[1728040923083,0.05386055,61508.0,61507.0,0.002638]
[1728040923325,0.04333098,61508.0,61507.0,0.002638]
[1728040923558,0.02933098,61508.0,61507.0,0.001638]
[1728040923780,0.01833098,61508.0,61507.0,0.164221]
[1728040924031,0.01733098,61508.0,61507.0,0.164221]
[1728040924513,0.01533098,61508.0,61507.0,0.168221]
[1728040924758,0.01533098,61508.0,61507.0,0.164221]
[1728040924990,0.01733098,61508.0,61507.0,0.169221]
[1728040925254,0.01733098,61508.0,61507.0,0.006638]
[1728040925710,0.04282235,61508.0,61507.0,0.006638]
[1728040926683,0.20340235,61508.0,61507.0,0.006638]
[1728040927170,0.20340235,61508.0,61507.0,0.009638]
[1728040927652,0.34021589,61508.0,61507.0,0.006638]
[1728040927881,0.17785559,61508.0,61507.0,0.004638]
[1728040928103,0.17785559,61508.0,61507.0,0.007638]
[1728040929299,0.17727219,61508.0,61507.0,0.007638]
[1728040929535,0.17727219,61508.0,61507.0,0.02352]
[1728040929761,0.17727219,61508.0,61507.0,0.007638]
[1728040930004,0.2017274,61508.0,61507.0,0.007638]
[1728040931188,0.20174842,61508.0,61507.0,0.007638]
[1728040932165,0.22724035,61508.0,61507.0,0.007638]
[1728040932401,0.06524375,61508.0,61507.0,0.007638]
[1728040932628,0.03975182,61508.0,61507.0,0.02352]
[1728040932874,0.03975182,61508.0,61507.0,0.007638]
[1728040933117,0.20233182,61508.0,61507.0,0.02352]
[1728040933367,0.20233182,61508.0,61507.0,0.007638]
[1728040933594,0.20233182,61508.0,61507.0,0.02354511]
[1728040933848,0.38558053,61508.0,61507.0,0.007638]
[1728040934109,0.38758053,61508.0,61507.0,0.02354655]
[1728040934382,0.38758053,61508.0,61507.0,0.007638]
[1728040934633,0.39397409,61508.0,61507.0,0.007638]
[1728040934886,0.64984391,61508.0,61507.0,0.004638]
[1728040935378,0.73052288,61508.0,61507.0,0.00139952]
[1728040935627,0.51835897,61508.0,61507.0,0.00139952]
[1728040935887,0.52635897,61508.0,61507.0,0.00139952]
[1728040936370,0.52035897,61508.0,61507.0,0.00139952]
[1728040936848,0.42535897,61508.0,61507.0,0.00139952]
[1728040937093,0.43535897,61508.0,61507.0,0.00139952]
[1728040937327,0.42535897,61508.0,61507.0,0.00139952]
[1728040937587,0.43535897,61508.0,61507.0,0.00139952]
[1728040938055,0.43535825,61508.0,61507.0,0.00139952]
[1728040938589,0.39562477,61508.0,61507.0,0.00139952]
[1728040938685,0.48279978,61508.0,61507.0,0.00139952]
[1728040939435,0.48479978,61508.0,61507.0,0.00139952]
[1728040940121,0.43535827,61508.0,61507.0,0.00139952]
[1728040941360,0.42535827,61508.0,61507.0,0.00139952]
[1728040941612,0.43735827,61508.0,61507.0,0.00139952]
[1728040941855,0.43735827,61508.0,61483.0,0.24507138]
[1728040941856,0.162643,61484.0,61483.0,0.24507138]
[1728040942130,0.48222242,61484.0,61483.0,0.24507138]
[1728040942487,0.48222242,61484.0,61483.0,0.01381368]
[1728040942741,0.39982242,61484.0,61483.0,0.001638]
[1728040943005,0.41382242,61484.0,61483.0,0.001638]
[1728040943518,0.40182242,61484.0,61483.0,0.001638]
[1728040943757,0.35393907,61484.0,61483.0,0.001638]
[1728040944458,0.37893907,61484.0,61483.0,0.001638]
[1728040944713,0.38093907,61484.0,61483.0,0.001638]
[1728040945198,0.40439498,61484.0,61483.0,0.001638]
[1728040945448,0.41587933,61484.0,61483.0,0.001638]
[1728040945938,0.42987933,61484.0,61483.0,0.001638]
[1728040946396,0.56721956,61484.0,61483.0,0.001638]
[1728040946636,0.5917238,61484.0,61483.0,0.001638]
[1728040946903,0.6047238,61484.0,61483.0,0.001638]
[1728040947144,0.53078354,61484.0,61483.0,0.001638]
[1728040947391,0.54478354,61484.0,61483.0,0.001638]
[1728040947581,0.55678354,61484.0,61483.0,0.001638]
[1728040947839,0.5172793,61484.0,61483.0,0.001638]
[1728040948092,0.5192793,61484.0,61483.0,0.001638]